{"text_format":"1","workbook":"xlsx","n_sheets":13,"sheets":["Jaanuari","Veebruari","Märtsi","Aprilli","Mai","Juuni","Juuli","Augusti","Septembri","Oktoobri","Novembri","Detsembri","Kokkuvõte aasta alg. tänaseni"],"not_rendered":{"charts":1,"images":0,"macros":0,"external_links":0,"defined_names":13,"comments":0,"pivot_tables":0},"unopened":[],"bounds":{"document_bytes":16777216,"sheet_cells":100000,"rows_first":2000,"rows_last":500,"rows_between":2000,"halvings":0,"cell_chars":16384,"cell_head_chars":4096},"cells_cut":0,"cells_raw":0,"read":"whole","date_system":"1900"}

{"sheet":"Jaanuari","index":0,"n_rows":8,"n_cols":14,"rows_kept":8,"cut":false,"hidden":false,"merged":[[6,0,7,0],[3,0,4,0]]}
["JAANUAR"]
["Veebimüük",null,"Oksjoni\nID","Üksuse kirjeldus","Ostuhind","Müügihind","Veebitasud","PayPali\ntasud","Krediitkaardi\ntasud","Saatmistasud","Saatekulud","Müük: kasum/kahjum","Saatmine: kasum/kahjum","Kasum/kahjum\nkokku"]
["Aasta",null,"TS001","Üksus 1",5,4,2,1.5,0,4,2,{"$f":"IFERROR(JaanuariMüük[Müügihind]-(JaanuariMüük[Ostuhind]+JaanuariMüük[Veebitasud]+JaanuariMüük[PayPali\ntasud]+JaanuariMüük[Krediitkaardi\ntasud]),\"\")","v":-4.5},{"$f":"JaanuariMüük[Saatmistasud]-JaanuariMüük[Saatekulud]","v":2},{"$f":"JaanuariMüük[Müük: kasum/kahjum]+JaanuariMüük[Saatmine: kasum/kahjum]","v":-2.5}]
[2012,null,"TP004","Üksus 2",2,30,0.5,0.5,null,4,5.5,{"$f":"IFERROR(JaanuariMüük[Müügihind]-(JaanuariMüük[Ostuhind]+JaanuariMüük[Veebitasud]+JaanuariMüük[PayPali\ntasud]+JaanuariMüük[Krediitkaardi\ntasud]),\"\")","v":27},{"$f":"JaanuariMüük[Saatmistasud]-JaanuariMüük[Saatekulud]","v":-1.5},{"$f":"JaanuariMüük[Müük: kasum/kahjum]+JaanuariMüük[Saatmine: kasum/kahjum]","v":25.5}]
[null,null,"RS99","Üksus 3",17,23,2,null,2,3,2,{"$f":"IFERROR(JaanuariMüük[Müügihind]-(JaanuariMüük[Ostuhind]+JaanuariMüük[Veebitasud]+JaanuariMüük[PayPali\ntasud]+JaanuariMüük[Krediitkaardi\ntasud]),\"\")","v":2},{"$f":"JaanuariMüük[Saatmistasud]-JaanuariMüük[Saatekulud]","v":1},{"$f":"JaanuariMüük[Müük: kasum/kahjum]+JaanuariMüük[Saatmine: kasum/kahjum]","v":3}]
["Kasum/kahjum kokku",null,"ST001","Üksus 4",120,180,2,1.5,null,3,2,{"$f":"IFERROR(JaanuariMüük[Müügihind]-(JaanuariMüük[Ostuhind]+JaanuariMüük[Veebitasud]+JaanuariMüük[PayPali\ntasud]+JaanuariMüük[Krediitkaardi\ntasud]),\"\")","v":56.5},{"$f":"JaanuariMüük[Saatmistasud]-JaanuariMüük[Saatekulud]","v":1},{"$f":"JaanuariMüük[Müük: kasum/kahjum]+JaanuariMüük[Saatmine: kasum/kahjum]","v":57.5}]
[{"$f":"JaanuariMüük[[#Totals],[Kasum/kahjum\nkokku]]","v":89},null,"ST001","Üksus 5",10,12,2,1.5,null,14,7,{"$f":"IFERROR(JaanuariMüük[Müügihind]-(JaanuariMüük[Ostuhind]+JaanuariMüük[Veebitasud]+JaanuariMüük[PayPali\ntasud]+JaanuariMüük[Krediitkaardi\ntasud]),\"\")","v":-1.5},{"$f":"JaanuariMüük[Saatmistasud]-JaanuariMüük[Saatekulud]","v":7},{"$f":"JaanuariMüük[Müük: kasum/kahjum]+JaanuariMüük[Saatmine: kasum/kahjum]","v":5.5}]
[null,null," Kokku",{"$f":"\"Müüdud üksused: \"&SUBTOTAL(103,JaanuariMüük[Üksuse kirjeldus])","v":"Müüdud üksused: 5"},{"$f":"SUBTOTAL(109,JaanuariMüük[Ostuhind])","v":154},{"$f":"SUBTOTAL(109,JaanuariMüük[Müügihind])","v":249},{"$f":"SUBTOTAL(109,JaanuariMüük[Veebitasud])","v":8.5},{"$f":"SUBTOTAL(109,JaanuariMüük[PayPali\ntasud])","v":5},{"$f":"SUBTOTAL(109,JaanuariMüük[Krediitkaardi\ntasud])","v":2},{"$f":"SUBTOTAL(109,JaanuariMüük[Saatmistasud])","v":28},{"$f":"SUBTOTAL(109,JaanuariMüük[Saatekulud])","v":18.5},{"$f":"SUBTOTAL(109,JaanuariMüük[Müük: kasum/kahjum])","v":79.5},{"$f":"SUBTOTAL(109,JaanuariMüük[Saatmine: kasum/kahjum])","v":9.5},{"$f":"SUBTOTAL(109,JaanuariMüük[Kasum/kahjum\nkokku])","v":89}]

{"sheet":"Veebruari","index":1,"n_rows":8,"n_cols":14,"rows_kept":8,"cut":false,"hidden":false,"merged":[[3,0,4,0],[6,0,7,0]]}
["VEEBRUAR"]
["Veebimüük",null,"Oksjoni\nID","Üksuse kirjeldus","Ostuhind","Müügihind","Veebitasud","PayPali\ntasud","Krediitkaardi\ntasud","Saatmistasud","Saatekulud","Müük: kasum/kahjum","Saatmine: kasum/kahjum","Kasum/kahjum\nkokku"]
["Aasta",null,"TS020","Üksus 1",10,175,3,1.5,0,7,5,{"$f":"IFERROR(VeebruariMüük[Müügihind]-(VeebruariMüük[Ostuhind]+VeebruariMüük[Veebitasud]+VeebruariMüük[PayPali\ntasud]+VeebruariMüük[Krediitkaardi\ntasud]),\"\")","v":160.5},{"$f":"VeebruariMüük[Saatmistasud]-VeebruariMüük[Saatekulud]","v":2},{"$f":"VeebruariMüük[Müük: kasum/kahjum]+VeebruariMüük[Saatmine: kasum/kahjum]","v":162.5}]
[{"$f":"AastaMüük","v":2012},null,"TS021","Üksus 2",32,100,3,null,3.2,20,13,{"$f":"IFERROR(VeebruariMüük[Müügihind]-(VeebruariMüük[Ostuhind]+VeebruariMüük[Veebitasud]+VeebruariMüük[PayPali\ntasud]+VeebruariMüük[Krediitkaardi\ntasud]),\"\")","v":61.8},{"$f":"VeebruariMüük[Saatmistasud]-VeebruariMüük[Saatekulud]","v":7},{"$f":"VeebruariMüük[Müük: kasum/kahjum]+VeebruariMüük[Saatmine: kasum/kahjum]","v":68.8}]
[null,null,"TS022","Üksus 3",3,7,2,null,2,0.5,1.2,{"$f":"IFERROR(VeebruariMüük[Müügihind]-(VeebruariMüük[Ostuhind]+VeebruariMüük[Veebitasud]+VeebruariMüük[PayPali\ntasud]+VeebruariMüük[Krediitkaardi\ntasud]),\"\")","v":0},{"$f":"VeebruariMüük[Saatmistasud]-VeebruariMüük[Saatekulud]","v":-0.7},{"$f":"VeebruariMüük[Müük: kasum/kahjum]+VeebruariMüük[Saatmine: kasum/kahjum]","v":-0.7}]
["Kasum/kahjum kokku",null,"TS023","Üksus 4",22,18,3,1.5,null,7,10,{"$f":"IFERROR(VeebruariMüük[Müügihind]-(VeebruariMüük[Ostuhind]+VeebruariMüük[Veebitasud]+VeebruariMüük[PayPali\ntasud]+VeebruariMüük[Krediitkaardi\ntasud]),\"\")","v":-8.5},{"$f":"VeebruariMüük[Saatmistasud]-VeebruariMüük[Saatekulud]","v":-3},{"$f":"VeebruariMüük[Müük: kasum/kahjum]+VeebruariMüük[Saatmine: kasum/kahjum]","v":-11.5}]
[{"$f":"VeebruariMüük[[#Totals],[Kasum/kahjum\nkokku]]","v":224.60000000000002},null,"TS024","Üksus 5",10,12,2,1.5,null,14,7,{"$f":"IFERROR(VeebruariMüük[Müügihind]-(VeebruariMüük[Ostuhind]+VeebruariMüük[Veebitasud]+VeebruariMüük[PayPali\ntasud]+VeebruariMüük[Krediitkaardi\ntasud]),\"\")","v":-1.5},{"$f":"VeebruariMüük[Saatmistasud]-VeebruariMüük[Saatekulud]","v":7},{"$f":"VeebruariMüük[Müük: kasum/kahjum]+VeebruariMüük[Saatmine: kasum/kahjum]","v":5.5}]
[null,null," Kokku",{"$f":"\"Müüdud üksused: \"&SUBTOTAL(103,VeebruariMüük[Üksuse kirjeldus])","v":"Müüdud üksused: 5"},{"$f":"SUBTOTAL(109,VeebruariMüük[Ostuhind])","v":77},{"$f":"SUBTOTAL(109,VeebruariMüük[Müügihind])","v":312},{"$f":"SUBTOTAL(109,VeebruariMüük[Veebitasud])","v":13},{"$f":"SUBTOTAL(109,VeebruariMüük[PayPali\ntasud])","v":4.5},{"$f":"SUBTOTAL(109,VeebruariMüük[Krediitkaardi\ntasud])","v":5.2},{"$f":"SUBTOTAL(109,VeebruariMüük[Saatmistasud])","v":48.5},{"$f":"SUBTOTAL(109,VeebruariMüük[Saatekulud])","v":36.200000000000003},{"$f":"SUBTOTAL(109,VeebruariMüük[Müük: kasum/kahjum])","v":212.3},{"$f":"SUBTOTAL(109,VeebruariMüük[Saatmine: kasum/kahjum])","v":12.3},{"$f":"SUBTOTAL(109,VeebruariMüük[Kasum/kahjum\nkokku])","v":224.60000000000002}]

{"sheet":"Märtsi","index":2,"n_rows":8,"n_cols":14,"rows_kept":8,"cut":false,"hidden":false,"merged":[[3,0,4,0],[6,0,7,0]]}
["MÄRTS"]
["Veebimüük",null,"Oksjoni\nID","Üksuse kirjeldus","Ostuhind","Müügihind","Veebitasud","PayPali\ntasud","Krediitkaardi\ntasud","Saatmistasud","Saatekulud","Müük: kasum/kahjum","Saatmine: kasum/kahjum","Kasum/kahjum\nkokku"]
["Aasta",null,null,null,null,null,null,null,null,null,null,{"$f":"IFERROR(MärtsiMüük[Müügihind]-(MärtsiMüük[Ostuhind]+MärtsiMüük[Veebitasud]+MärtsiMüük[PayPali\ntasud]+MärtsiMüük[Krediitkaardi\ntasud]),\"\")","v":0},{"$f":"MärtsiMüük[Saatmistasud]-MärtsiMüük[Saatekulud]","v":0},{"$f":"MärtsiMüük[Müük: kasum/kahjum]+MärtsiMüük[Saatmine: kasum/kahjum]","v":0}]
[{"$f":"AastaMüük","v":2012},null,null,null,null,null,null,null,null,null,null,{"$f":"IFERROR(MärtsiMüük[Müügihind]-(MärtsiMüük[Ostuhind]+MärtsiMüük[Veebitasud]+MärtsiMüük[PayPali\ntasud]+MärtsiMüük[Krediitkaardi\ntasud]),\"\")","v":0},{"$f":"MärtsiMüük[Saatmistasud]-MärtsiMüük[Saatekulud]","v":0},{"$f":"MärtsiMüük[Müük: kasum/kahjum]+MärtsiMüük[Saatmine: kasum/kahjum]","v":0}]
[null,null,null,null,null,null,null,null,null,null,null,{"$f":"IFERROR(MärtsiMüük[Müügihind]-(MärtsiMüük[Ostuhind]+MärtsiMüük[Veebitasud]+MärtsiMüük[PayPali\ntasud]+MärtsiMüük[Krediitkaardi\ntasud]),\"\")","v":0},{"$f":"MärtsiMüük[Saatmistasud]-MärtsiMüük[Saatekulud]","v":0},{"$f":"MärtsiMüük[Müük: kasum/kahjum]+MärtsiMüük[Saatmine: kasum/kahjum]","v":0}]
["Kasum/kahjum kokku",null,null,null,null,null,null,null,null,null,null,{"$f":"IFERROR(MärtsiMüük[Müügihind]-(MärtsiMüük[Ostuhind]+MärtsiMüük[Veebitasud]+MärtsiMüük[PayPali\ntasud]+MärtsiMüük[Krediitkaardi\ntasud]),\"\")","v":0},{"$f":"MärtsiMüük[Saatmistasud]-MärtsiMüük[Saatekulud]","v":0},{"$f":"MärtsiMüük[Müük: kasum/kahjum]+MärtsiMüük[Saatmine: kasum/kahjum]","v":0}]
[{"$f":"MärtsiMüük[[#Totals],[Kasum/kahjum\nkokku]]","v":0},null,null,null,null,null,null,null,null,null,null,{"$f":"IFERROR(MärtsiMüük[Müügihind]-(MärtsiMüük[Ostuhind]+MärtsiMüük[Veebitasud]+MärtsiMüük[PayPali\ntasud]+MärtsiMüük[Krediitkaardi\ntasud]),\"\")","v":0},{"$f":"MärtsiMüük[Saatmistasud]-MärtsiMüük[Saatekulud]","v":0},{"$f":"MärtsiMüük[Müük: kasum/kahjum]+MärtsiMüük[Saatmine: kasum/kahjum]","v":0}]
[null,null,"Kokku",{"$f":"\"Müüdud üksused: \"&SUBTOTAL(103,MärtsiMüük[Üksuse kirjeldus])","v":"Müüdud üksused: 0"},{"$f":"SUBTOTAL(109,MärtsiMüük[Ostuhind])","v":0},{"$f":"SUBTOTAL(109,MärtsiMüük[Müügihind])","v":0},{"$f":"SUBTOTAL(109,MärtsiMüük[Veebitasud])","v":0},{"$f":"SUBTOTAL(109,MärtsiMüük[PayPali\ntasud])","v":0},{"$f":"SUBTOTAL(109,MärtsiMüük[Krediitkaardi\ntasud])","v":0},{"$f":"SUBTOTAL(109,MärtsiMüük[Saatmistasud])","v":0},{"$f":"SUBTOTAL(109,MärtsiMüük[Saatekulud])","v":0},{"$f":"SUBTOTAL(109,MärtsiMüük[Müük: kasum/kahjum])","v":0},{"$f":"SUBTOTAL(109,MärtsiMüük[Saatmine: kasum/kahjum])","v":0},{"$f":"SUBTOTAL(109,MärtsiMüük[Kasum/kahjum\nkokku])","v":0}]

{"sheet":"Aprilli","index":3,"n_rows":8,"n_cols":14,"rows_kept":8,"cut":false,"hidden":false,"merged":[[3,0,4,0],[6,0,7,0]]}
["APRILL"]
["Veebimüük",null,"Oksjoni\nID","Üksuse kirjeldus","Ostuhind","Müügihind","Veebitasud","PayPali\ntasud","Krediitkaardi\ntasud","Saatmistasud","Saatekulud","Müük: kasum/kahjum","Saatmine: kasum/kahjum","Kasum/kahjum\nkokku"]
["Aasta",null,null,null,null,null,null,null,null,null,null,null,{"$f":"AprilliMüük[Saatmistasud]-AprilliMüük[Saatekulud]","v":0},{"$f":"AprilliMüük[Müük: kasum/kahjum]+AprilliMüük[Saatmine: kasum/kahjum]","v":0}]
[{"$f":"AastaMüük","v":2012},null,null,null,null,null,null,null,null,null,null,null,{"$f":"AprilliMüük[Saatmistasud]-AprilliMüük[Saatekulud]","v":0},{"$f":"AprilliMüük[Müük: kasum/kahjum]+AprilliMüük[Saatmine: kasum/kahjum]","v":0}]
[null,null,null,null,null,null,null,null,null,null,null,null,{"$f":"AprilliMüük[Saatmistasud]-AprilliMüük[Saatekulud]","v":0},{"$f":"AprilliMüük[Müük: kasum/kahjum]+AprilliMüük[Saatmine: kasum/kahjum]","v":0}]
["Kasum/kahjum kokku",null,null,null,null,null,null,null,null,null,null,null,{"$f":"AprilliMüük[Saatmistasud]-AprilliMüük[Saatekulud]","v":0},{"$f":"AprilliMüük[Müük: kasum/kahjum]+AprilliMüük[Saatmine: kasum/kahjum]","v":0}]
[{"$f":"AprilliMüük[[#Totals],[Kasum/kahjum\nkokku]]","v":0},null,null,null,null,null,null,null,null,null,null,null,{"$f":"AprilliMüük[Saatmistasud]-AprilliMüük[Saatekulud]","v":0},{"$f":"AprilliMüük[Müük: kasum/kahjum]+AprilliMüük[Saatmine: kasum/kahjum]","v":0}]
[null,null,"Kokku",{"$f":"\"Müüdud üksused: \"&SUBTOTAL(103,AprilliMüük[Üksuse kirjeldus])","v":"Müüdud üksused: 0"},{"$f":"SUBTOTAL(109,AprilliMüük[Ostuhind])","v":0},{"$f":"SUBTOTAL(109,AprilliMüük[Müügihind])","v":0},{"$f":"SUBTOTAL(109,AprilliMüük[Veebitasud])","v":0},{"$f":"SUBTOTAL(109,AprilliMüük[PayPali\ntasud])","v":0},{"$f":"SUBTOTAL(109,AprilliMüük[Krediitkaardi\ntasud])","v":0},{"$f":"SUBTOTAL(109,AprilliMüük[Saatmistasud])","v":0},{"$f":"SUBTOTAL(109,AprilliMüük[Saatekulud])","v":0},{"$f":"SUBTOTAL(109,AprilliMüük[Müük: kasum/kahjum])","v":0},{"$f":"SUBTOTAL(109,AprilliMüük[Saatmine: kasum/kahjum])","v":0},{"$f":"SUBTOTAL(109,AprilliMüük[Kasum/kahjum\nkokku])","v":0}]

{"sheet":"Mai","index":4,"n_rows":8,"n_cols":14,"rows_kept":8,"cut":false,"hidden":false,"merged":[[3,0,4,0],[6,0,7,0]]}
["MAI"]
["Veebimüük",null,"Oksjoni\nID","Üksuse kirjeldus","Ostuhind","Müügihind","Veebitasud","PayPali\ntasud","Krediitkaardi\ntasud","Saatmistasud","Saatekulud","Müük: kasum/kahjum","Saatmine: kasum/kahjum","Kasum/kahjum\nkokku"]
["Aasta",null,null,null,null,null,null,null,null,null,null,null,{"$f":"MaySales[Saatmistasud]-MaySales[Saatekulud]","v":0},{"$f":"MaySales[Müük: kasum/kahjum]+MaySales[Saatmine: kasum/kahjum]","v":0}]
[{"$f":"AastaMüük","v":2012},null,null,null,null,null,null,null,null,null,null,null,{"$f":"MaySales[Saatmistasud]-MaySales[Saatekulud]","v":0},{"$f":"MaySales[Müük: kasum/kahjum]+MaySales[Saatmine: kasum/kahjum]","v":0}]
[null,null,null,null,null,null,null,null,null,null,null,null,{"$f":"MaySales[Saatmistasud]-MaySales[Saatekulud]","v":0},{"$f":"MaySales[Müük: kasum/kahjum]+MaySales[Saatmine: kasum/kahjum]","v":0}]
["Kasum/kahjum kokku",null,null,null,null,null,null,null,null,null,null,null,{"$f":"MaySales[Saatmistasud]-MaySales[Saatekulud]","v":0},{"$f":"MaySales[Müük: kasum/kahjum]+MaySales[Saatmine: kasum/kahjum]","v":0}]
[{"$f":"MaySales[[#Totals],[Kasum/kahjum\nkokku]]","v":0},null,null,null,null,null,null,null,null,null,null,null,{"$f":"MaySales[Saatmistasud]-MaySales[Saatekulud]","v":0},{"$f":"MaySales[Müük: kasum/kahjum]+MaySales[Saatmine: kasum/kahjum]","v":0}]
[null,null,"Kokku",{"$f":"\"Müüdud üksused: \"&SUBTOTAL(103,MaySales[Üksuse kirjeldus])","v":"Müüdud üksused: 0"},{"$f":"SUBTOTAL(109,MaySales[Ostuhind])","v":0},{"$f":"SUBTOTAL(109,MaySales[Müügihind])","v":0},{"$f":"SUBTOTAL(109,MaySales[Veebitasud])","v":0},{"$f":"SUBTOTAL(109,MaySales[PayPali\ntasud])","v":0},{"$f":"SUBTOTAL(109,MaySales[Krediitkaardi\ntasud])","v":0},{"$f":"SUBTOTAL(109,MaySales[Saatmistasud])","v":0},{"$f":"SUBTOTAL(109,MaySales[Saatekulud])","v":0},{"$f":"SUBTOTAL(109,MaySales[Müük: kasum/kahjum])","v":0},{"$f":"SUBTOTAL(109,MaySales[Saatmine: kasum/kahjum])","v":0},{"$f":"SUBTOTAL(109,MaySales[Kasum/kahjum\nkokku])","v":0}]

{"sheet":"Juuni","index":5,"n_rows":8,"n_cols":14,"rows_kept":8,"cut":false,"hidden":false,"merged":[[3,0,4,0],[6,0,7,0]]}
["JUUNI"]
["Veebimüük",null,"Oksjoni\nID","Üksuse kirjeldus","Ostuhind","Müügihind","Veebitasud","PayPali\ntasud","Krediitkaardi\ntasud","Saatmistasud","Saatekulud","Müük: kasum/kahjum","Saatmine: kasum/kahjum","Kasum/kahjum\nkokku"]
["Aasta",null,null,null,null,null,null,null,null,null,null,null,{"$f":"JuneSales[Saatmistasud]-JuneSales[Saatekulud]","v":0},{"$f":"JuneSales[Müük: kasum/kahjum]+JuneSales[Saatmine: kasum/kahjum]","v":0}]
[{"$f":"AastaMüük","v":2012},null,null,null,null,null,null,null,null,null,null,null,{"$f":"JuneSales[Saatmistasud]-JuneSales[Saatekulud]","v":0},{"$f":"JuneSales[Müük: kasum/kahjum]+JuneSales[Saatmine: kasum/kahjum]","v":0}]
[null,null,null,null,null,null,null,null,null,null,null,null,{"$f":"JuneSales[Saatmistasud]-JuneSales[Saatekulud]","v":0},{"$f":"JuneSales[Müük: kasum/kahjum]+JuneSales[Saatmine: kasum/kahjum]","v":0}]
["Kasum/kahjum kokku",null,null,null,null,null,null,null,null,null,null,null,{"$f":"JuneSales[Saatmistasud]-JuneSales[Saatekulud]","v":0},{"$f":"JuneSales[Müük: kasum/kahjum]+JuneSales[Saatmine: kasum/kahjum]","v":0}]
[{"$f":"JuneSales[[#Totals],[Kasum/kahjum\nkokku]]","v":0},null,null,null,null,null,null,null,null,null,null,null,{"$f":"JuneSales[Saatmistasud]-JuneSales[Saatekulud]","v":0},{"$f":"JuneSales[Müük: kasum/kahjum]+JuneSales[Saatmine: kasum/kahjum]","v":0}]
[null,null,"Kokku",{"$f":"\"Müüdud üksused: \"&SUBTOTAL(103,JuneSales[Üksuse kirjeldus])","v":"Müüdud üksused: 0"},{"$f":"SUBTOTAL(109,JuneSales[Ostuhind])","v":0},{"$f":"SUBTOTAL(109,JuneSales[Müügihind])","v":0},{"$f":"SUBTOTAL(109,JuneSales[Veebitasud])","v":0},{"$f":"SUBTOTAL(109,JuneSales[PayPali\ntasud])","v":0},{"$f":"SUBTOTAL(109,JuneSales[Krediitkaardi\ntasud])","v":0},{"$f":"SUBTOTAL(109,JuneSales[Saatmistasud])","v":0},{"$f":"SUBTOTAL(109,JuneSales[Saatekulud])","v":0},{"$f":"SUBTOTAL(109,JuneSales[Müük: kasum/kahjum])","v":0},{"$f":"SUBTOTAL(109,JuneSales[Saatmine: kasum/kahjum])","v":0},{"$f":"SUBTOTAL(109,JuneSales[Kasum/kahjum\nkokku])","v":0}]

{"sheet":"Juuli","index":6,"n_rows":8,"n_cols":14,"rows_kept":8,"cut":false,"hidden":false,"merged":[[3,0,4,0],[6,0,7,0]]}
["JUULI"]
["Veebimüük",null,"Oksjoni\nID","Üksuse kirjeldus","Ostuhind","Müügihind","Veebitasud","PayPali\ntasud","Krediitkaardi\ntasud","Saatmistasud","Saatekulud","Müük: kasum/kahjum","Saatmine: kasum/kahjum","Kasum/kahjum\nkokku"]
["Aasta",null,null,null,null,null,null,null,null,null,null,null,{"$f":"JuuliMüük[Saatmistasud]-JuuliMüük[Saatekulud]","v":0},{"$f":"JuuliMüük[Müük: kasum/kahjum]+JuuliMüük[Saatmine: kasum/kahjum]","v":0}]
[{"$f":"AastaMüük","v":2012},null,null,null,null,null,null,null,null,null,null,null,{"$f":"JuuliMüük[Saatmistasud]-JuuliMüük[Saatekulud]","v":0},{"$f":"JuuliMüük[Müük: kasum/kahjum]+JuuliMüük[Saatmine: kasum/kahjum]","v":0}]
[null,null,null,null,null,null,null,null,null,null,null,null,{"$f":"JuuliMüük[Saatmistasud]-JuuliMüük[Saatekulud]","v":0},{"$f":"JuuliMüük[Müük: kasum/kahjum]+JuuliMüük[Saatmine: kasum/kahjum]","v":0}]
["Kasum/kahjum kokku",null,null,null,null,null,null,null,null,null,null,null,{"$f":"JuuliMüük[Saatmistasud]-JuuliMüük[Saatekulud]","v":0},{"$f":"JuuliMüük[Müük: kasum/kahjum]+JuuliMüük[Saatmine: kasum/kahjum]","v":0}]
[{"$f":"JuuliMüük[[#Totals],[Kasum/kahjum\nkokku]]","v":0},null,null,null,null,null,null,null,null,null,null,null,{"$f":"JuuliMüük[Saatmistasud]-JuuliMüük[Saatekulud]","v":0},{"$f":"JuuliMüük[Müük: kasum/kahjum]+JuuliMüük[Saatmine: kasum/kahjum]","v":0}]
[null,null,"Kokku",{"$f":"\"Müüdud üksused: \"&SUBTOTAL(103,JuuliMüük[Üksuse kirjeldus])","v":"Müüdud üksused: 0"},{"$f":"SUBTOTAL(109,JuuliMüük[Ostuhind])","v":0},{"$f":"SUBTOTAL(109,JuuliMüük[Müügihind])","v":0},{"$f":"SUBTOTAL(109,JuuliMüük[Veebitasud])","v":0},{"$f":"SUBTOTAL(109,JuuliMüük[PayPali\ntasud])","v":0},{"$f":"SUBTOTAL(109,JuuliMüük[Krediitkaardi\ntasud])","v":0},{"$f":"SUBTOTAL(109,JuuliMüük[Saatmistasud])","v":0},{"$f":"SUBTOTAL(109,JuuliMüük[Saatekulud])","v":0},{"$f":"SUBTOTAL(109,JuuliMüük[Müük: kasum/kahjum])","v":0},{"$f":"SUBTOTAL(109,JuuliMüük[Saatmine: kasum/kahjum])","v":0},{"$f":"SUBTOTAL(109,JuuliMüük[Kasum/kahjum\nkokku])","v":0}]

{"sheet":"Augusti","index":7,"n_rows":8,"n_cols":14,"rows_kept":8,"cut":false,"hidden":false,"merged":[[3,0,4,0],[6,0,7,0]]}
["AUGUST"]
["Veebimüük",null,"Oksjoni\nID","Üksuse kirjeldus","Ostuhind","Müügihind","Veebitasud","PayPali\ntasud","Krediitkaardi\ntasud","Saatmistasud","Saatekulud","Müük: kasum/kahjum","Saatmine: kasum/kahjum","Kasum/kahjum\nkokku"]
["Aasta",null,null,null,null,null,null,null,null,null,null,null,{"$f":"AugustiMüük[Saatmistasud]-AugustiMüük[Saatekulud]","v":0},{"$f":"AugustiMüük[Müük: kasum/kahjum]+AugustiMüük[Saatmine: kasum/kahjum]","v":0}]
[{"$f":"AastaMüük","v":2012},null,null,null,null,null,null,null,null,null,null,null,{"$f":"AugustiMüük[Saatmistasud]-AugustiMüük[Saatekulud]","v":0},{"$f":"AugustiMüük[Müük: kasum/kahjum]+AugustiMüük[Saatmine: kasum/kahjum]","v":0}]
[null,null,null,null,null,null,null,null,null,null,null,null,{"$f":"AugustiMüük[Saatmistasud]-AugustiMüük[Saatekulud]","v":0},{"$f":"AugustiMüük[Müük: kasum/kahjum]+AugustiMüük[Saatmine: kasum/kahjum]","v":0}]
["Kasum/kahjum kokku",null,null,null,null,null,null,null,null,null,null,null,{"$f":"AugustiMüük[Saatmistasud]-AugustiMüük[Saatekulud]","v":0},{"$f":"AugustiMüük[Müük: kasum/kahjum]+AugustiMüük[Saatmine: kasum/kahjum]","v":0}]
[{"$f":"AugustiMüük[[#Totals],[Kasum/kahjum\nkokku]]","v":0},null,null,null,null,null,null,null,null,null,null,null,{"$f":"AugustiMüük[Saatmistasud]-AugustiMüük[Saatekulud]","v":0},{"$f":"AugustiMüük[Müük: kasum/kahjum]+AugustiMüük[Saatmine: kasum/kahjum]","v":0}]
[null,null,"Kokku",{"$f":"\"Müüdud üksused: \"&SUBTOTAL(103,AugustiMüük[Üksuse kirjeldus])","v":"Müüdud üksused: 0"},{"$f":"SUBTOTAL(109,AugustiMüük[Ostuhind])","v":0},{"$f":"SUBTOTAL(109,AugustiMüük[Müügihind])","v":0},{"$f":"SUBTOTAL(109,AugustiMüük[Veebitasud])","v":0},{"$f":"SUBTOTAL(109,AugustiMüük[PayPali\ntasud])","v":0},{"$f":"SUBTOTAL(109,AugustiMüük[Krediitkaardi\ntasud])","v":0},{"$f":"SUBTOTAL(109,AugustiMüük[Saatmistasud])","v":0},{"$f":"SUBTOTAL(109,AugustiMüük[Saatekulud])","v":0},{"$f":"SUBTOTAL(109,AugustiMüük[Müük: kasum/kahjum])","v":0},{"$f":"SUBTOTAL(109,AugustiMüük[Saatmine: kasum/kahjum])","v":0},{"$f":"SUBTOTAL(109,AugustiMüük[Kasum/kahjum\nkokku])","v":0}]

{"sheet":"Septembri","index":8,"n_rows":8,"n_cols":14,"rows_kept":8,"cut":false,"hidden":false,"merged":[[3,0,4,0],[6,0,7,0]]}
["SEPTEMBER"]
["Veebimüük",null,"Oksjoni\nID","Üksuse kirjeldus","Ostuhind","Müügihind","Veebitasud","PayPali\ntasud","Krediitkaardi\ntasud","Saatmistasud","Saatekulud","Müük: kasum/kahjum","Saatmine: kasum/kahjum","Kasum/kahjum\nkokku"]
["Aasta",null,null,null,null,null,null,null,null,null,null,null,{"$f":"SeptembriMüük[Saatmistasud]-SeptembriMüük[Saatekulud]","v":0},{"$f":"SeptembriMüük[Müük: kasum/kahjum]+SeptembriMüük[Saatmine: kasum/kahjum]","v":0}]
[{"$f":"AastaMüük","v":2012},null,null,null,null,null,null,null,null,null,null,null,{"$f":"SeptembriMüük[Saatmistasud]-SeptembriMüük[Saatekulud]","v":0},{"$f":"SeptembriMüük[Müük: kasum/kahjum]+SeptembriMüük[Saatmine: kasum/kahjum]","v":0}]
[null,null,null,null,null,null,null,null,null,null,null,null,{"$f":"SeptembriMüük[Saatmistasud]-SeptembriMüük[Saatekulud]","v":0},{"$f":"SeptembriMüük[Müük: kasum/kahjum]+SeptembriMüük[Saatmine: kasum/kahjum]","v":0}]
["Kasum/kahjum kokku",null,null,null,null,null,null,null,null,null,null,null,{"$f":"SeptembriMüük[Saatmistasud]-SeptembriMüük[Saatekulud]","v":0},{"$f":"SeptembriMüük[Müük: kasum/kahjum]+SeptembriMüük[Saatmine: kasum/kahjum]","v":0}]
[{"$f":"SeptembriMüük[[#Totals],[Kasum/kahjum\nkokku]]","v":0},null,null,null,null,null,null,null,null,null,null,null,{"$f":"SeptembriMüük[Saatmistasud]-SeptembriMüük[Saatekulud]","v":0},{"$f":"SeptembriMüük[Müük: kasum/kahjum]+SeptembriMüük[Saatmine: kasum/kahjum]","v":0}]
[null,null,"Kokku",{"$f":"\"Müüdud üksused: \"&SUBTOTAL(103,SeptembriMüük[Üksuse kirjeldus])","v":"Müüdud üksused: 0"},{"$f":"SUBTOTAL(109,SeptembriMüük[Ostuhind])","v":0},{"$f":"SUBTOTAL(109,SeptembriMüük[Müügihind])","v":0},{"$f":"SUBTOTAL(109,SeptembriMüük[Veebitasud])","v":0},{"$f":"SUBTOTAL(109,SeptembriMüük[PayPali\ntasud])","v":0},{"$f":"SUBTOTAL(109,SeptembriMüük[Krediitkaardi\ntasud])","v":0},{"$f":"SUBTOTAL(109,SeptembriMüük[Saatmistasud])","v":0},{"$f":"SUBTOTAL(109,SeptembriMüük[Saatekulud])","v":0},{"$f":"SUBTOTAL(109,SeptembriMüük[Müük: kasum/kahjum])","v":0},{"$f":"SUBTOTAL(109,SeptembriMüük[Saatmine: kasum/kahjum])","v":0},{"$f":"SUBTOTAL(109,SeptembriMüük[Kasum/kahjum\nkokku])","v":0}]

{"sheet":"Oktoobri","index":9,"n_rows":8,"n_cols":14,"rows_kept":8,"cut":false,"hidden":false,"merged":[[3,0,4,0],[6,0,7,0]]}
["OKTOOBER"]
["Veebimüük",null,"Oksjoni\nID","Üksuse kirjeldus","Ostuhind","Müügihind","Veebitasud","PayPali\ntasud","Krediitkaardi\ntasud","Saatmistasud","Saatekulud","Müük: kasum/kahjum","Saatmine: kasum/kahjum","Kasum/kahjum\nkokku"]
["Aasta",null,null,null,null,null,null,null,null,null,null,null,{"$f":"OktoobriMüük[Saatmistasud]-OktoobriMüük[Saatekulud]","v":0},{"$f":"OktoobriMüük[Müük: kasum/kahjum]+OktoobriMüük[Saatmine: kasum/kahjum]","v":0}]
[{"$f":"AastaMüük","v":2012},null,null,null,null,null,null,null,null,null,null,null,{"$f":"OktoobriMüük[Saatmistasud]-OktoobriMüük[Saatekulud]","v":0},{"$f":"OktoobriMüük[Müük: kasum/kahjum]+OktoobriMüük[Saatmine: kasum/kahjum]","v":0}]
[null,null,null,null,null,null,null,null,null,null,null,null,{"$f":"OktoobriMüük[Saatmistasud]-OktoobriMüük[Saatekulud]","v":0},{"$f":"OktoobriMüük[Müük: kasum/kahjum]+OktoobriMüük[Saatmine: kasum/kahjum]","v":0}]
["Kasum/kahjum kokku",null,null,null,null,null,null,null,null,null,null,null,{"$f":"OktoobriMüük[Saatmistasud]-OktoobriMüük[Saatekulud]","v":0},{"$f":"OktoobriMüük[Müük: kasum/kahjum]+OktoobriMüük[Saatmine: kasum/kahjum]","v":0}]
[{"$f":"OktoobriMüük[[#Totals],[Kasum/kahjum\nkokku]]","v":0},null,null,null,null,null,null,null,null,null,null,null,{"$f":"OktoobriMüük[Saatmistasud]-OktoobriMüük[Saatekulud]","v":0},{"$f":"OktoobriMüük[Müük: kasum/kahjum]+OktoobriMüük[Saatmine: kasum/kahjum]","v":0}]
[null,null,"Kokku",{"$f":"\"Müüdud üksused: \"&SUBTOTAL(103,OktoobriMüük[Üksuse kirjeldus])","v":"Müüdud üksused: 0"},{"$f":"SUBTOTAL(109,OktoobriMüük[Ostuhind])","v":0},{"$f":"SUBTOTAL(109,OktoobriMüük[Müügihind])","v":0},{"$f":"SUBTOTAL(109,OktoobriMüük[Veebitasud])","v":0},{"$f":"SUBTOTAL(109,OktoobriMüük[PayPali\ntasud])","v":0},{"$f":"SUBTOTAL(109,OktoobriMüük[Krediitkaardi\ntasud])","v":0},{"$f":"SUBTOTAL(109,OktoobriMüük[Saatmistasud])","v":0},{"$f":"SUBTOTAL(109,OktoobriMüük[Saatekulud])","v":0},{"$f":"SUBTOTAL(109,OktoobriMüük[Müük: kasum/kahjum])","v":0},{"$f":"SUBTOTAL(109,OktoobriMüük[Saatmine: kasum/kahjum])","v":0},{"$f":"SUBTOTAL(109,OktoobriMüük[Kasum/kahjum\nkokku])","v":0}]

{"sheet":"Novembri","index":10,"n_rows":8,"n_cols":14,"rows_kept":8,"cut":false,"hidden":false,"merged":[[3,0,4,0],[6,0,7,0]]}
["NOVEMBER"]
["Veebimüük",null,"Oksjoni\nID","Üksuse kirjeldus","Ostuhind","Müügihind","Veebitasud","PayPali\ntasud","Krediitkaardi\ntasud","Saatmistasud","Saatekulud","Müük: kasum/kahjum","Saatmine: kasum/kahjum","Kasum/kahjum\nkokku"]
["Aasta",null,null,null,null,null,null,null,null,null,null,null,{"$f":"NovembriMüük[Saatmistasud]-NovembriMüük[Saatekulud]","v":0},{"$f":"NovembriMüük[Müük: kasum/kahjum]+NovembriMüük[Saatmine: kasum/kahjum]","v":0}]
[{"$f":"AastaMüük","v":2012},null,null,null,null,null,null,null,null,null,null,null,{"$f":"NovembriMüük[Saatmistasud]-NovembriMüük[Saatekulud]","v":0},{"$f":"NovembriMüük[Müük: kasum/kahjum]+NovembriMüük[Saatmine: kasum/kahjum]","v":0}]
[null,null,null,null,null,null,null,null,null,null,null,null,{"$f":"NovembriMüük[Saatmistasud]-NovembriMüük[Saatekulud]","v":0},{"$f":"NovembriMüük[Müük: kasum/kahjum]+NovembriMüük[Saatmine: kasum/kahjum]","v":0}]
["Kasum/kahjum kokku",null,null,null,null,null,null,null,null,null,null,null,{"$f":"NovembriMüük[Saatmistasud]-NovembriMüük[Saatekulud]","v":0},{"$f":"NovembriMüük[Müük: kasum/kahjum]+NovembriMüük[Saatmine: kasum/kahjum]","v":0}]
[{"$f":"NovembriMüük[[#Totals],[Kasum/kahjum\nkokku]]","v":0},null,null,null,null,null,null,null,null,null,null,null,{"$f":"NovembriMüük[Saatmistasud]-NovembriMüük[Saatekulud]","v":0},{"$f":"NovembriMüük[Müük: kasum/kahjum]+NovembriMüük[Saatmine: kasum/kahjum]","v":0}]
[null,null,"Kokku",{"$f":"\"Müüdud üksused: \"&SUBTOTAL(103,NovembriMüük[Üksuse kirjeldus])","v":"Müüdud üksused: 0"},{"$f":"SUBTOTAL(109,NovembriMüük[Ostuhind])","v":0},{"$f":"SUBTOTAL(109,NovembriMüük[Müügihind])","v":0},{"$f":"SUBTOTAL(109,NovembriMüük[Veebitasud])","v":0},{"$f":"SUBTOTAL(109,NovembriMüük[PayPali\ntasud])","v":0},{"$f":"SUBTOTAL(109,NovembriMüük[Krediitkaardi\ntasud])","v":0},{"$f":"SUBTOTAL(109,NovembriMüük[Saatmistasud])","v":0},{"$f":"SUBTOTAL(109,NovembriMüük[Saatekulud])","v":0},{"$f":"SUBTOTAL(109,NovembriMüük[Müük: kasum/kahjum])","v":0},{"$f":"SUBTOTAL(109,NovembriMüük[Saatmine: kasum/kahjum])","v":0},{"$f":"SUBTOTAL(109,NovembriMüük[Kasum/kahjum\nkokku])","v":0}]

{"sheet":"Detsembri","index":11,"n_rows":8,"n_cols":14,"rows_kept":8,"cut":false,"hidden":false,"merged":[[3,0,4,0],[6,0,7,0]]}
["DETSEMBR"]
["Veebimüük",null,"Oksjoni\nID","Üksuse kirjeldus","Ostuhind","Müügihind","Veebitasud","PayPali\ntasud","Krediitkaardi\ntasud","Saatmistasud","Saatekulud","Müük: kasum/kahjum","Saatmine: kasum/kahjum","Kasum/kahjum\nkokku"]
["Aasta",null,null,null,null,null,null,null,null,null,null,null,{"$f":"DetsembriMüük[Saatmistasud]-DetsembriMüük[Saatekulud]","v":0},{"$f":"DetsembriMüük[Müük: kasum/kahjum]+DetsembriMüük[Saatmine: kasum/kahjum]","v":0}]
[{"$f":"AastaMüük","v":2012},null,null,null,null,null,null,null,null,null,null,null,{"$f":"DetsembriMüük[Saatmistasud]-DetsembriMüük[Saatekulud]","v":0},{"$f":"DetsembriMüük[Müük: kasum/kahjum]+DetsembriMüük[Saatmine: kasum/kahjum]","v":0}]
[null,null,null,null,null,null,null,null,null,null,null,null,{"$f":"DetsembriMüük[Saatmistasud]-DetsembriMüük[Saatekulud]","v":0},{"$f":"DetsembriMüük[Müük: kasum/kahjum]+DetsembriMüük[Saatmine: kasum/kahjum]","v":0}]
["Kasum/kahjum kokku",null,null,null,null,null,null,null,null,null,null,null,{"$f":"DetsembriMüük[Saatmistasud]-DetsembriMüük[Saatekulud]","v":0},{"$f":"DetsembriMüük[Müük: kasum/kahjum]+DetsembriMüük[Saatmine: kasum/kahjum]","v":0}]
[{"$f":"DetsembriMüük[[#Totals],[Kasum/kahjum\nkokku]]","v":0},null,null,null,null,null,null,null,null,null,null,null,{"$f":"DetsembriMüük[Saatmistasud]-DetsembriMüük[Saatekulud]","v":0},{"$f":"DetsembriMüük[Müük: kasum/kahjum]+DetsembriMüük[Saatmine: kasum/kahjum]","v":0}]
[null,null,"Kokku",{"$f":"\"Müüdud üksused: \"&SUBTOTAL(103,DetsembriMüük[Üksuse kirjeldus])","v":"Müüdud üksused: 0"},{"$f":"SUBTOTAL(109,DetsembriMüük[Ostuhind])","v":0},{"$f":"SUBTOTAL(109,DetsembriMüük[Müügihind])","v":0},{"$f":"SUBTOTAL(109,DetsembriMüük[Veebitasud])","v":0},{"$f":"SUBTOTAL(109,DetsembriMüük[PayPali\ntasud])","v":0},{"$f":"SUBTOTAL(109,DetsembriMüük[Krediitkaardi\ntasud])","v":0},{"$f":"SUBTOTAL(109,DetsembriMüük[Saatmistasud])","v":0},{"$f":"SUBTOTAL(109,DetsembriMüük[Saatekulud])","v":0},{"$f":"SUBTOTAL(109,DetsembriMüük[Müük: kasum/kahjum])","v":0},{"$f":"SUBTOTAL(109,DetsembriMüük[Saatmine: kasum/kahjum])","v":0},{"$f":"SUBTOTAL(109,DetsembriMüük[Kasum/kahjum\nkokku])","v":0}]

{"sheet":"Kokkuvõte aasta alg. tänaseni","index":12,"n_rows":16,"n_cols":11,"rows_kept":16,"cut":false,"hidden":false,"merged":[[6,0,7,0],[3,0,4,0]]}
["YTD"]
["Kokkuvõte",null,"Kasum/kahjum",null,null,null,null,"Kasum/kahjum aasta algusest tänaseni"]
["Aasta",null,null,null,null,null,null,"Kuu","Müük: kasum/kahjum","Saatmine: kasum/kahjum","Kasum/kahjum\nkokku"]
[{"$f":"AastaMüük","v":2012},null,null,null,null,null,null,"Jaanuar",{"$f":"JaanuariMüük[[#Totals],[Müük: kasum/kahjum]]","v":79.5},{"$f":"JaanuariMüük[[#Totals],[Saatmine: kasum/kahjum]]","v":9.5},{"$f":"IF(AND(YTDkokkuvõte[[#This Row],[Müük: kasum/kahjum]]<>\"\",YTDkokkuvõte[[#This Row],[Saatmine: kasum/kahjum]]<>\"\"),YTDkokkuvõte[[#This Row],[Müük: kasum/kahjum]]+YTDkokkuvõte[[#This Row],[Saatmine: kasum/kahjum]],\"\")","v":89}]
[null,null,null,null,null,null,null,"Veebruar",{"$f":"VeebruariMüük[[#Totals],[Müük: kasum/kahjum]]","v":212.3},{"$f":"VeebruariMüük[[#Totals],[Saatmine: kasum/kahjum]]","v":12.3},{"$f":"IF(AND(YTDkokkuvõte[[#This Row],[Müük: kasum/kahjum]]<>\"\",YTDkokkuvõte[[#This Row],[Saatmine: kasum/kahjum]]<>\"\"),YTDkokkuvõte[[#This Row],[Müük: kasum/kahjum]]+YTDkokkuvõte[[#This Row],[Saatmine: kasum/kahjum]],\"\")","v":224.60000000000002}]
["Kuu müügitrend:",null,null,null,null,null,null,"Märts",{"$f":"MärtsiMüük[[#Totals],[Müük: kasum/kahjum]]","v":0},{"$f":"MärtsiMüük[[#Totals],[Saatmine: kasum/kahjum]]","v":0},{"$f":"IF(AND(YTDkokkuvõte[[#This Row],[Müük: kasum/kahjum]]<>\"\",YTDkokkuvõte[[#This Row],[Saatmine: kasum/kahjum]]<>\"\"),YTDkokkuvõte[[#This Row],[Müük: kasum/kahjum]]+YTDkokkuvõte[[#This Row],[Saatmine: kasum/kahjum]],\"\")","v":0}]
[null,null,null,null,null,null,null,"Aprill",{"$f":"AprilliMüük[[#Totals],[Müük: kasum/kahjum]]","v":0},{"$f":"AprilliMüük[[#Totals],[Saatmine: kasum/kahjum]]","v":0},{"$f":"IF(AND(YTDkokkuvõte[[#This Row],[Müük: kasum/kahjum]]<>\"\",YTDkokkuvõte[[#This Row],[Saatmine: kasum/kahjum]]<>\"\"),YTDkokkuvõte[[#This Row],[Müük: kasum/kahjum]]+YTDkokkuvõte[[#This Row],[Saatmine: kasum/kahjum]],\"\")","v":0}]
[null,null,null,null,null,null,null,"Mai",{"$f":"MaySales[[#Totals],[Müük: kasum/kahjum]]","v":0},{"$f":"MaySales[[#Totals],[Saatmine: kasum/kahjum]]","v":0},{"$f":"IF(AND(YTDkokkuvõte[[#This Row],[Müük: kasum/kahjum]]<>\"\",YTDkokkuvõte[[#This Row],[Saatmine: kasum/kahjum]]<>\"\"),YTDkokkuvõte[[#This Row],[Müük: kasum/kahjum]]+YTDkokkuvõte[[#This Row],[Saatmine: kasum/kahjum]],\"\")","v":0}]
[null,null,null,null,null,null,null,"Juuni",{"$f":"JuneSales[[#Totals],[Müük: kasum/kahjum]]","v":0},{"$f":"JuneSales[[#Totals],[Saatmine: kasum/kahjum]]","v":0},{"$f":"IF(AND(YTDkokkuvõte[[#This Row],[Müük: kasum/kahjum]]<>\"\",YTDkokkuvõte[[#This Row],[Saatmine: kasum/kahjum]]<>\"\"),YTDkokkuvõte[[#This Row],[Müük: kasum/kahjum]]+YTDkokkuvõte[[#This Row],[Saatmine: kasum/kahjum]],\"\")","v":0}]
[null,null,null,null,null,null,null,"Juuli",{"$f":"JuuliMüük[[#Totals],[Müük: kasum/kahjum]]","v":0},{"$f":"JuuliMüük[[#Totals],[Saatmine: kasum/kahjum]]","v":0},{"$f":"IF(AND(YTDkokkuvõte[[#This Row],[Müük: kasum/kahjum]]<>\"\",YTDkokkuvõte[[#This Row],[Saatmine: kasum/kahjum]]<>\"\"),YTDkokkuvõte[[#This Row],[Müük: kasum/kahjum]]+YTDkokkuvõte[[#This Row],[Saatmine: kasum/kahjum]],\"\")","v":0}]
[null,null,null,null,null,null,null,"August",{"$f":"AugustiMüük[[#Totals],[Müük: kasum/kahjum]]","v":0},{"$f":"AugustiMüük[[#Totals],[Saatmine: kasum/kahjum]]","v":0},{"$f":"IF(AND(YTDkokkuvõte[[#This Row],[Müük: kasum/kahjum]]<>\"\",YTDkokkuvõte[[#This Row],[Saatmine: kasum/kahjum]]<>\"\"),YTDkokkuvõte[[#This Row],[Müük: kasum/kahjum]]+YTDkokkuvõte[[#This Row],[Saatmine: kasum/kahjum]],\"\")","v":0}]
[null,null,null,null,null,null,null,"September",{"$f":"SeptembriMüük[[#Totals],[Müük: kasum/kahjum]]","v":0},{"$f":"SeptembriMüük[[#Totals],[Saatmine: kasum/kahjum]]","v":0},{"$f":"IF(AND(YTDkokkuvõte[[#This Row],[Müük: kasum/kahjum]]<>\"\",YTDkokkuvõte[[#This Row],[Saatmine: kasum/kahjum]]<>\"\"),YTDkokkuvõte[[#This Row],[Müük: kasum/kahjum]]+YTDkokkuvõte[[#This Row],[Saatmine: kasum/kahjum]],\"\")","v":0}]
[null,null,null,null,null,null,null,"Oktoober",{"$f":"OktoobriMüük[[#Totals],[Müük: kasum/kahjum]]","v":0},{"$f":"OktoobriMüük[[#Totals],[Saatmine: kasum/kahjum]]","v":0},{"$f":"IF(AND(YTDkokkuvõte[[#This Row],[Müük: kasum/kahjum]]<>\"\",YTDkokkuvõte[[#This Row],[Saatmine: kasum/kahjum]]<>\"\"),YTDkokkuvõte[[#This Row],[Müük: kasum/kahjum]]+YTDkokkuvõte[[#This Row],[Saatmine: kasum/kahjum]],\"\")","v":0}]
[null,null,null,null,null,null,null,"November",{"$f":"NovembriMüük[[#Totals],[Müük: kasum/kahjum]]","v":0},{"$f":"NovembriMüük[[#Totals],[Saatmine: kasum/kahjum]]","v":0},{"$f":"IF(AND(YTDkokkuvõte[[#This Row],[Müük: kasum/kahjum]]<>\"\",YTDkokkuvõte[[#This Row],[Saatmine: kasum/kahjum]]<>\"\"),YTDkokkuvõte[[#This Row],[Müük: kasum/kahjum]]+YTDkokkuvõte[[#This Row],[Saatmine: kasum/kahjum]],\"\")","v":0}]
[null,null,null,null,null,null,null,"Detsember",{"$f":"DetsembriMüük[[#Totals],[Müük: kasum/kahjum]]","v":0},{"$f":"DetsembriMüük[[#Totals],[Saatmine: kasum/kahjum]]","v":0},{"$f":"IF(AND(YTDkokkuvõte[[#This Row],[Müük: kasum/kahjum]]<>\"\",YTDkokkuvõte[[#This Row],[Saatmine: kasum/kahjum]]<>\"\"),YTDkokkuvõte[[#This Row],[Müük: kasum/kahjum]]+YTDkokkuvõte[[#This Row],[Saatmine: kasum/kahjum]],\"\")","v":0}]
[null,null,null,null,null,null,null,"Summad",{"$f":"SUBTOTAL(109,YTDkokkuvõte[Müük: kasum/kahjum])","v":291.8},{"$f":"SUBTOTAL(109,YTDkokkuvõte[Saatmine: kasum/kahjum])","v":21.8},{"$f":"SUBTOTAL(109,YTDkokkuvõte[Kasum/kahjum\nkokku])","v":313.60000000000002}]